bitfinex-derivatives/quotes_ETHF0:USTF0_20240830
["timestamp","ask_amount","ask_price","bid_price","bid_amount"]
[1725057424839,5.2036718,2521.9,2521.8,0.98043411]
[1725057425048,4.8071318,2521.9,2521.8,0.98043411]
[1725057425249,4.8071318,2521.9,2521.8,1.82955009]
[1725057425437,4.8071318,2521.9,2521.8,0.98043411]
[1725057425638,4.8071318,2521.9,2521.8,1.82955564]
[1725057425841,5.2036718,2521.9,2521.8,1.82955564]
[1725057426049,5.2036718,2521.9,2521.8,0.98043411]
[1725057429443,5.2036718,2521.9,2521.8,1.24570117]
[1725057429646,5.2036718,2521.9,2521.8,1.82965866]
[1725057430944,5.2036718,2521.9,2521.8,0.39656]
[1725057431145,5.2036718,2521.9,2521.8,1.82968792]
[1725057431848,5.2036718,2521.9,2521.8,0.58396911]
[1725057432247,5.2036718,2521.9,2521.8,0.98052911]
[1725057433743,5.2036718,2521.9,2521.8,1.82969599]
[1725057436355,5.6143718,2521.9,2521.8,1.82969599]
[1725057438750,3.2078,2522.3,2522.2,0.39649]
[1725057438951,0.39648,2522.3,2522.2,0.98045911]
[1725057439151,0.39648,2522.3,2522.2,0.58396911]
[1725057439355,0.39648,2522.3,2522.2,0.98045911]
[1725057441947,0.4163453,2522.5,2522.4,0.39646]
[1725057442148,0.4163453,2522.5,2522.4,0.98042911]
[1725057442346,8.72423519,2522.5,2522.4,0.98042911]
[1725057442756,8.72423519,2522.5,2522.4,0.97985294]
[1725057442956,9.12068519,2522.5,2522.4,0.97985294]
[1725057443645,8.72423519,2522.5,2522.4,0.97985294]
[1725057443846,4.76023519,2522.5,2522.4,0.97985294]
[1725057444254,0.0059453,2522.5,2522.4,6.93198854]
[1725057444449,0.0059453,2522.5,2522.4,8.72571525]
[1725057445857,0.0059453,2522.5,2522.4,8.33221568]
[1725057446058,0.0059453,2522.5,2522.4,9.16496555]
[1725057446256,0.0059453,2522.5,2522.4,10.15612555]
[1725057449457,0.0059453,2522.5,2522.4,10.15562992]
[1725057450255,0.0059453,2522.5,2522.4,11.14678992]
[1725057450450,0.00247862,2522.5,2522.4,13.74860936]
[1725057450655,0.00247862,2522.5,2522.4,14.78116814]
[1725057450855,0.00247862,2522.5,2522.4,13.94598899]
[1725057451054,0.00247862,2522.5,2522.4,14.97818663]
[1725057451258,0.00247862,2522.5,2522.4,14.35887809]
[1725057451463,0.00247862,2522.5,2522.4,14.97812511]
[1725057451656,0.00247862,2522.5,2522.4,15.49756262]
[1725057451858,0.00247862,2522.5,2522.4,19.94592747]
[1725057452159,0.00247862,2522.5,2522.4,20.35861168]
[1725057452359,0.00247862,2522.5,2522.4,20.35852243]
[1725057452661,0.00247862,2522.5,2522.4,16.94526267]
[1725057452962,0.00247862,2522.5,2522.4,17.79199472]
[1725057453153,0.00247862,2522.5,2522.4,16.94410777]
[1725057454457,0.00247862,2522.5,2522.4,15.91217654]
[1725057454859,0.00247862,2522.5,2522.4,16.94410777]
[1725057455159,0.00247862,2522.5,2522.4,15.91217654]
[1725057457566,0.00247862,2522.5,2522.4,15.91216357]
[1725057457964,0.00247862,2522.5,2522.4,15.51960041]
[1725057459468,0.00247862,2522.5,2522.4,14.08975963]
[1725057459650,0.00247862,2522.5,2522.4,15.51961169]
[1725057460256,0.00247862,2522.5,2522.4,5.79031206]
[1725057460462,1.58162862,2522.5,2522.4,0.58264403]
[1725057460963,1.58162862,2522.5,2522.4,0.97928218]
[1725057461470,0.39646,2522.4,2522.3,3.60427]
[1725057463556,0.39646,2522.4,2522.3,3.2078]
[1725057465073,0.39656,2521.8,2521.5,4.85904095]
[1725057465263,0.9912,2522.3,2521.6,0.58313416]
[1725057465264,1.18427,2521.7,2521.6,0.58313416]
[1725057465664,5.3376993,2521.7,2521.6,0.97972416]
[1725057465868,0.7877,2521.7,2521.6,0.97972416]
[1725057466064,0.7877,2521.7,2521.6,0.39659]
[1725057466375,0.7877,2521.7,2521.6,0.97987762]
[1725057472285,0.7877,2521.7,2521.6,3.71987762]
[1725057472478,0.7877,2521.7,2521.6,4.56796065]
[1725057472693,0.7877,2521.7,2521.6,0.39659]
[1725057472980,0.7877,2521.7,2521.6,0.97984424]
[1725057473582,0.39659,2521.6,2521.5,3.6044]
[1725057473980,5.13816225,2521.7,2521.5,3.6044]
[1725057474181,0.39659,2521.6,2521.5,3.6044]
[1725057474590,5.53474225,2521.7,2521.5,3.6044]
[1725057475288,0.39659,2521.6,2521.5,3.6044]
[1725057476091,5.53474225,2521.7,2521.6,0.39659]
[1725057476299,9.50034225,2521.7,2521.6,0.39659]
[1725057476678,9.50034225,2521.7,2521.5,3.60439]
[1725057476883,0.39659,2521.6,2521.5,3.60439]
[1725057477387,5.13816225,2521.7,2521.6,0.39659]
[1725057477689,9.10376225,2521.7,2521.6,0.39659]
[1725057478985,9.50035225,2521.7,2521.6,0.39659]
[1725057482093,5.13816225,2521.7,2521.6,0.39659]
[1725057483298,5.53473225,2521.7,2521.6,0.39659]
[1725057485099,0.7877,2521.7,2521.6,0.39659]
[1725057485293,0.7877,2521.7,2521.6,0.79809]
[1725057486898,0.7877,2521.7,2521.6,0.39659]
[1725057487886,0.4048,2521.9,2521.8,0.39656]
[1725057488092,0.80872,2522.1,2522.0,0.39653]
[1725057488591,9.02205594,2522.1,2522.0,0.39653]
[1725057489492,4.66073594,2522.1,2522.0,0.39653]
[1725057489701,0.7992,2522.3,2522.2,0.39649]
[1725057489892,0.4047,2522.3,2522.2,0.39649]
[1725057490095,0.4047,2522.3,2522.2,0.78729]
[1725057491895,0.4047,2522.3,2522.2,0.39649]
[1725057497202,0.4047,2522.3,2522.2,0.77889]
[1725057498010,0.00247862,2522.5,2522.4,1.38762]
[1725057498313,0.00247862,2522.5,2522.4,4.10155762]
[1725057498608,0.00247862,2522.5,2522.4,11.27335762]
[1725057498811,0.00247862,2522.5,2522.4,14.10293421]
[1725057501410,0.00247862,2522.5,2522.4,12.67291]
[1725057501596,0.00247862,2522.5,2522.4,14.10265139]
[1725057503503,0.00247862,2522.5,2522.4,12.12032139]
[1725057503698,0.00247862,2522.5,2522.4,11.12916139]
[1725057505195,0.00247862,2522.5,2522.4,10.86469792]
[1725057505402,0.00247862,2522.5,2522.4,11.12936074]
[1725057507109,0.00247862,2522.5,2522.4,9.69942]
[1725057507305,0.00247862,2522.5,2522.4,11.12931302]
[1725057508408,0.00247862,2522.5,2522.4,9.69942]
[1725057508608,0.00247862,2522.5,2522.4,11.12937774]
[1725057512311,0.00247862,2522.5,2522.4,11.12933363]
[1725057512524,0.00247862,2522.5,2522.4,10.28210607]
[1725057512811,0.00247862,2522.5,2522.4,11.1293334]
[1725057513315,0.00247862,2522.5,2522.4,10.28210607]
[1725057515119,0.00247862,2522.5,2522.4,10.28214234]
[1725057516311,0.00247862,2522.5,2522.4,5.17814234]
[1725057518515,0.00247862,2522.5,2522.4,4.59542]
[1725057518707,0.00247862,2522.5,2522.4,5.17881214]
[1725057519306,0.00247862,2522.5,2522.4,4.59542]
[1725057519721,0.00247862,2522.5,2522.4,5.17879606]
[1725057521714,0.00247862,2522.5,2522.4,6.02706702]
[1725057522215,0.00247862,2522.5,2522.4,6.02708553]
[1725057527538,0.00247862,2522.5,2522.4,4.59542]
[1725057527719,0.00247862,2522.5,2522.4,6.02703997]
[1725057528525,0.00247862,2522.5,2522.4,6.02704095]
[1725057529418,0.00103332,2522.5,2522.4,7.01820095]
[1725057529618,0.00103332,2522.5,2522.4,8.15820095]
[1725057529812,0.00103332,2522.5,2522.4,8.55127665]
[1725057530526,0.00103332,2522.5,2522.4,9.58202812]
[1725057530715,0.00103332,2522.5,2522.4,8.55127665]
[1725057531314,0.00103332,2522.5,2522.4,9.58202812]
[1725057531922,0.00103332,2522.5,2522.4,8.15033281]
[1725057532116,0.00103332,2522.5,2522.4,9.58167715]
[1725057533113,0.00103332,2522.5,2522.4,11.56427923]
[1725057534023,0.00103332,2522.5,2522.4,11.15330015]
[1725057534329,0.00103332,2522.5,2522.4,12.69941136]
[1725057534923,0.00103332,2522.5,2522.4,12.69938315]
[1725057535233,0.00103332,2522.5,2522.4,12.69916508]
[1725057537917,0.00103332,2522.5,2522.4,11.15303787]
[1725057538322,0.00103332,2522.5,2522.4,8.70915387]
[1725057538520,0.00103332,2522.5,2522.4,11.15308267]
[1725057539929,0.00103332,2522.5,2522.4,11.15306157]
[1725057540123,0.00103332,2522.5,2522.4,13.21456452]
[1725057541134,0.00103332,2522.5,2522.4,13.21443272]
[1725057541628,0.00103332,2522.5,2522.4,17.17956964]
[1725057543232,1.20799,2522.9,2522.8,0.3964]
[1725057543431,1.20799,2522.9,2522.8,3.87662962]
[1725057543632,9.40469817,2522.9,2522.8,3.25689063]
[1725057544129,9.40469817,2522.9,2522.8,3.87635009]
[1725057545833,9.00830817,2522.9,2522.8,5.85890641]
[1725057546049,9.00830817,2522.9,2522.8,3.87635009]
[1725057546934,9.40468817,2522.9,2522.8,3.87635009]
[1725057547138,9.00830817,2522.9,2522.8,3.87635009]
[1725057547340,9.00830817,2522.9,2522.8,2.44536843]
[1725057547638,9.00830817,2522.9,2522.8,3.87636204]
[1725057548132,9.40468817,2522.9,2522.8,3.87636204]
[1725057548334,9.40468817,2522.9,2522.8,2.22029479]
[1725057548537,9.40468817,2522.9,2522.8,3.25672741]
[1725057549239,9.40468817,2522.9,2522.8,3.87638084]
[1725057549631,9.00830817,2522.9,2522.8,3.87638084]
[1725057549940,9.40468817,2522.9,2522.8,3.87638084]
[1725057550738,9.40468817,2522.9,2522.8,2.863793]
[1725057551040,9.40468817,2522.9,2522.8,3.87631892]
[1725057551333,9.40468817,2522.9,2522.8,3.87632076]
[1725057551539,9.00830817,2522.9,2522.8,3.87632076]
[1725057552135,5.04430817,2522.9,2522.8,3.87629842]
[1725057552339,9.00830817,2522.9,2522.8,3.87629842]
[1725057554643,9.00830817,2522.9,2522.8,3.8762243]
[1725057554844,5.04430817,2522.9,2522.8,3.8762243]
[1725057555035,0.8116,2522.9,2522.8,7.36794491]
[1725057557437,0.8116,2522.9,2522.8,7.36773659]
[1725057557836,0.8116,2522.9,2522.8,6.84926157]
[1725057558243,0.8116,2522.9,2522.8,7.36766749]
[1725057558441,0.8116,2522.9,2522.8,5.38517319]
[1725057558746,0.8116,2522.9,2522.8,7.36761721]
[1725057558939,0.8116,2522.9,2522.8,6.37660721]
[1725057559139,0.8116,2522.9,2522.8,5.81296828]
[1725057559548,0.8116,2522.9,2522.8,7.36761721]
[1725057559948,0.4066,2522.9,2522.8,7.36761721]
[1725057561249,0.4066,2522.9,2522.8,7.3682241]
[1725057562648,0.3590453,2523.1,2523.0,0.99093]
[1725057562649,0.0059453,2523.1,2523.0,0.99093]
[1725057562852,0.0059453,2523.1,2523.0,14.6609972]
[1725057563054,0.0059453,2523.1,2523.0,16.0482972]
[1725057563234,0.0059453,2523.1,2523.0,14.34010088]
[1725057563648,0.0059453,2523.1,2523.0,16.41061776]
[1725057563951,0.0059453,2523.1,2523.0,12.44631205]
[1725057564446,0.0059453,2523.1,2523.0,16.40885402]
[1725057565346,0.0059453,2523.1,2523.0,20.37301691]
[1725057565548,0.0059453,2523.1,2523.0,16.40885402]
[1725057566147,0.0059453,2523.1,2523.0,14.42641]
[1725057567358,0.0059453,2523.1,2523.0,14.33798157]
[1725057567548,0.0059453,2523.1,2523.0,12.90752583]
[1725057567749,0.0059453,2523.1,2523.0,14.33797736]
[1725057568248,0.0059453,2523.1,2523.0,12.35588891]
[1725057569754,0.0059453,2523.1,2523.0,18.35588891]
[1725057569954,0.0059453,2523.1,2523.0,18.35585881]
[1725057571045,0.0059453,2523.1,2523.0,12.35578654]
[1725057571247,0.0059453,2523.1,2523.0,13.36812424]
[1725057571448,0.0059453,2523.1,2523.0,12.37719424]
[1725057571643,0.0059453,2523.1,2523.0,9.93415504]
[1725057571849,0.0059453,2523.1,2523.0,11.36509122]
[1725057572044,0.0059453,2523.1,2523.0,12.37752872]
[1725057573758,0.0059453,2523.1,2523.0,11.36527368]
[1725057574656,0.0059453,2523.1,2523.0,5.42796999]
[1725057575061,0.0059453,2523.1,2523.0,3.60417]
[1725057575250,0.0059453,2523.1,2523.0,5.4284179]
[1725057575552,0.7649453,2523.1,2523.0,5.4284179]
[1725057577953,0.7649453,2523.1,2523.0,3.99713982]
[1725057578154,0.7649453,2523.1,2523.0,6.46347017]
[1725057582364,0.7649453,2523.1,2523.0,5.42852676]
[1725057583267,0.7649453,2523.1,2523.0,5.03553413]
[1725057584463,0.7649453,2523.1,2523.0,5.42851722]
[1725057584766,0.7649453,2523.1,2523.0,5.03553413]
[1725057585461,0.7649453,2523.1,2523.0,3.60417]
[1725057585662,0.7649453,2523.1,2523.0,5.42853373]
[1725057586061,0.7649453,2523.1,2523.0,5.0355435]
[1725057586968,0.7649453,2523.1,2523.0,5.42859446]
[1725057587265,0.7649453,2523.1,2523.0,5.03222446]
[1725057587467,1.1612953,2523.1,2523.0,4.6391735]
[1725057587660,10.69819229,2523.1,2523.0,0.58326624]
[1725057588969,1.98186,2523.0,2522.6,1.4374084]
[1725057589271,1.98186,2523.0,2522.6,0.4023653]
[1725057589272,0.39642,2522.7,2522.6,0.4023653]
[1725057589469,4.36042,2522.7,2522.6,1.83467667]
[1725057589775,10.29922,2522.7,2522.6,1.43825667]
[1725057589960,20.65076885,2522.7,2522.2,1.0350431]
[1725057590155,0.99117,2522.4,2522.3,1.43281918]
[1725057590362,1.38763,2522.4,2522.3,1.43284199]
[1725057590558,5.35243,2522.4,2522.3,0.58384768]
[1725057590762,9.5514,2522.4,2522.3,0.58384768]
[1725057590964,1.38785,2522.0,2521.8,5.79540776]
[1725057591270,0.39653,2522.0,2521.9,0.58988757]
[1725057591571,8.55622551,2522.0,2521.9,0.58996603]
[1725057591869,8.55622551,2522.0,2521.9,0.0059453]
[1725057592169,8.15969551,2522.0,2521.9,0.4024853]
[1725057592364,0.39652,2522.1,2521.9,1.1459453]
[1725057592563,0.39652,2522.1,2522.0,0.39653]
[1725057593069,0.39652,2522.1,2521.9,1.5424753]
[1725057593759,0.39652,2522.1,2522.0,0.39653]
[1725057593959,0.39652,2522.1,2521.9,1.5424753]
[1725057598582,0.39652,2522.1,2522.0,0.39653]
[1725057599170,4.36132,2522.1,2522.0,0.39653]
[1725057600570,4.36132,2522.1,2521.9,1.5424753]
[1725057600771,0.39652,2522.1,2521.9,1.5424753]
[1725057601073,0.39652,2522.1,2522.0,0.39653]
[1725057601465,4.36132,2522.1,2522.0,0.39653]
[1725057601658,8.65017741,2522.1,2522.0,0.39653]
[1725057602365,9.03687741,2522.1,2522.0,0.39653]
[1725057604275,8.64035741,2522.1,2522.0,0.39653]
[1725057604778,9.03686741,2522.1,2522.0,0.39653]
[1725057605775,9.03686741,2522.1,2521.9,1.5424753]
[1725057605972,5.07206741,2522.1,2521.9,0.4024753]
[1725057606272,4.28885741,2522.1,2522.0,1.38785]
[1725057606576,4.95809614,2522.3,2522.1,0.3965]
[1725057606775,4.95809614,2522.3,2522.1,0.7555]
[1725057606978,4.73078,2522.3,2522.1,0.7555]
[1725057607177,4.3343,2522.3,2522.2,0.39649]
[1725057607475,8.71249895,2522.3,2522.2,0.39649]
[1725057607672,9.10897895,2522.3,2522.1,0.7555]
[1725057607978,8.34299895,2522.3,2522.2,0.39649]
[1725057608273,4.37819895,2522.3,2522.2,0.39649]
[1725057608468,8.34299895,2522.3,2522.2,0.39649]
[1725057609180,4.37819895,2522.3,2522.2,0.39649]
[1725057610168,0.3827,2522.4,2522.1,2.86397]
[1725057610169,0.3677,2522.5,2522.4,0.39646]
[1725057610372,0.76416,2522.5,2522.1,2.86397]
[1725057610671,0.76416,2522.5,2522.3,0.39647]
[1725057611688,0.76416,2522.5,2522.4,0.39646]
[1725057616074,0.3677,2522.5,2522.4,0.39646]
[1725057617078,0.76415,2522.5,2522.4,0.39646]
[1725057618300,0.3677,2522.5,2522.4,0.39646]
[1725057619191,0.3677,2522.5,2522.1,1.8727]
[1725057619192,0.39646,2522.4,2522.3,0.39647]
[1725057620005,0.76416,2522.5,2522.4,0.39646]
[1725057621499,8.85375794,2522.5,2522.4,0.39646]
[1725057621696,0.39647,2522.4,2522.3,0.39647]
[1725057622101,0.39649,2522.3,2521.9,3.2137453]
[1725057622296,0.39652,2522.1,2522.0,0.39652]
[1725057622702,8.92904656,2522.1,2522.0,0.39652]
[1725057622898,8.92904656,2522.1,2521.9,3.2137453]
[1725057622899,0.39653,2522.0,2521.9,3.6102753]
[1725057623201,4.59975656,2522.0,2521.9,3.6102853]
[1725057623398,8.56455656,2522.0,2521.9,3.6102853]
[1725057623707,8.16802656,2522.0,2521.9,3.6102853]
[1725057624198,8.16802656,2522.0,2521.9,3.2137453]
[1725057625008,8.56455656,2522.0,2521.9,3.2137453]
[1725057625404,8.56455656,2522.0,2521.9,0.0059453]
[1725057625702,8.16802656,2522.0,2521.9,0.0059453]
[1725057628700,8.56455656,2522.0,2521.9,0.0059453]
[1725057630996,8.56455656,2522.0,2521.9,0.4024853]
[1725057631199,8.56455656,2522.0,2521.9,0.9866039]
[1725057632116,8.56455656,2522.0,2521.9,0.98660421]
[1725057635202,8.56455656,2522.0,2521.9,0.4024853]
[1725057635402,8.56455656,2522.0,2521.9,0.98661882]
[1725057636510,8.56455656,2522.0,2521.9,0.59007882]
[1725057636712,16.29934656,2522.0,2521.2,1.0350431]
[1725057636920,1.53664,2521.3,2521.2,1.0350431]
[1725057637215,0.99164,2521.2,2520.7,0.76333]
[1725057637408,0.99164,2521.2,2520.8,0.58460598]
[1725057637409,0.39671,2520.9,2520.8,0.58460598]
[1725057637706,0.39671,2520.9,2520.8,0.98131598]
[1725057637707,4.2794089,2520.9,2520.8,0.98131598]
[1725057637911,8.2466089,2520.9,2520.8,0.98131598]
[1725057638509,4.2794089,2520.9,2520.8,0.39671]
[1725057638715,4.2794089,2520.9,2520.8,0.98130274]
[1725057639212,3.09974092,2520.9,2520.8,13.08029274]
[1725057639420,0.0059453,2521.1,2521.0,1.38839]
[1725057639606,0.0059453,2521.1,2521.0,13.06750425]
[1725057639908,0.0059453,2521.1,2521.0,14.05945933]
[1725057640110,0.0059453,2521.1,2521.0,16.188566]
[1725057640913,0.0059453,2521.1,2521.0,15.196856]
[1725057641409,0.0059453,2521.1,2521.0,14.57553972]
[1725057641808,0.0059453,2521.1,2521.0,22.1884792]
[1725057643409,0.0059453,2521.1,2521.0,21.56719584]
[1725057643718,0.0059453,2521.1,2521.0,20.57548584]
[1725057644216,0.0059453,2521.1,2521.0,14.57548584]
[1725057644406,0.0059453,2521.1,2521.0,13.02292118]
[1725057644611,0.0059453,2521.1,2521.0,14.05854381]
[1725057644807,0.0059453,2521.1,2521.0,10.94816328]
[1725057645017,0.4026153,2521.1,2520.8,1.03567208]
[1725057645218,5.71782776,2521.1,2521.0,0.58416139]
[1725057645514,5.71782776,2521.1,2520.7,3.5744]
[1725057645515,4.32947776,2521.1,2520.7,4.7144]
[1725057645716,0.0059453,2521.1,2521.0,5.73619]
[1725057645907,0.0059453,2521.1,2521.0,10.28696946]
[1725057646104,0.39652,2522.1,2521.2,0.99163]
[1725057646307,0.39651,2522.1,2521.8,0.39655]
[1725057646507,4.43659877,2522.1,2521.8,0.39655]
[1725057646715,5.56510877,2522.2,2521.9,0.39654]
[1725057646916,1.12851,2522.2,2521.9,0.39654]
[1725057647111,1.12851,2522.2,2521.8,0.3654]
[1725057647112,4.59464955,2522.1,2521.8,0.76195]
[1725057647512,1.12851,2522.2,2521.8,0.76195]
[1725057647513,0.0059453,2522.3,2521.9,4.3478]
[1725057647713,0.0059453,2522.3,2522.1,1.14]
[1725057648018,0.0059453,2522.3,2521.9,4.3537453]
[1725057648223,0.0059453,2522.3,2521.9,0.0059453]
[1725057648224,5.28346403,2522.2,2521.9,0.0059453]
[1725057648514,0.39653,2522.0,2521.9,0.0059453]
[1725057648814,4.32428827,2522.0,2521.9,0.0059453]
[1725057649004,8.68561827,2522.0,2521.9,0.0059453]
[1725057649211,11.50133,2522.0,2521.9,0.0059453]
[1725057649412,15.82561827,2522.0,2521.9,0.0059453]
[1725057649716,16.20111827,2522.0,2521.9,0.0059453]
[1725057650221,5.83978827,2522.0,2521.9,0.0059453]
[1725057655122,6.23631827,2522.0,2521.9,0.0059453]
[1725057657919,4.69978827,2522.0,2521.9,0.0059453]
[1725057658116,4.69978827,2522.0,2521.9,0.4024853]
[1725057658424,5.09631827,2522.0,2521.9,0.0059453]
[1725057658619,5.09631827,2522.0,2521.9,0.3902453]
[1725057659324,4.69978827,2522.0,2521.9,0.7867853]
[1725057659527,3.2078,2522.1,2522.0,0.39653]
[1725057659717,0.3663,2522.2,2522.1,0.39651]
[1725057660022,0.7646253,2522.3,2522.2,0.39649]
[1725057660023,0.3681453,2522.3,2522.2,0.39649]
[1725057660228,0.0059453,2522.3,2522.2,0.39649]
[1725057663627,0.0059453,2522.3,2522.2,0.98011226]
[1725057672136,0.0059453,2522.3,2522.2,1.97135226]
[1725057672736,0.0059453,2522.3,2522.2,1.38773]
[1725057673629,0.0059453,2522.3,2522.2,0.98011324]
[1725057675237,0.0059453,2522.3,2522.2,0.39649]
[1725057679740,0.0059453,2522.3,2522.2,1.38773]
[1725057680046,0.0059453,2522.3,2522.2,0.39649]
[1725057680546,0.0059453,2522.3,2522.2,1.38773]
[1725057681238,0.0059453,2522.3,2522.2,0.39649]
[1725057681843,0.3851453,2522.3,2522.2,0.39649]
[1725057682148,0.0059453,2522.3,2522.2,0.39649]
[1725057682839,0.0059453,2522.3,2522.2,1.38773]
[1725057683040,0.0059453,2522.3,2522.2,4.59553]
[1725057683235,0.0059453,2522.3,2522.2,9.55157]
[1725057683440,0.0059453,2522.3,2522.2,10.69157]
[1725057683642,0.0059453,2522.3,2522.2,16.69157]
[1725057683847,0.0059453,2522.3,2522.2,18.11998303]
[1725057684244,0.0059453,2522.3,2522.2,10.13750303]
[1725057684449,0.0059453,2522.3,2522.2,9.29248373]
[1725057684651,0.0059453,2522.3,2522.2,7.56909]
[1725057684952,0.0059453,2522.3,2522.2,3.7913174]
[1725057684953,0.4024253,2522.3,2522.2,3.7913174]
[1725057685139,10.87770472,2522.3,2522.2,0.5835174]
[1725057685344,10.87770472,2522.3,2521.9,0.0059453]
[1725057685345,0.39653,2522.0,2521.9,0.0059453]
[1725057685649,0.99136,2521.9,2521.2,5.67146313]
[1725057685842,0.39659,2521.6,2521.3,0.98071038]
[1725057686044,0.39659,2521.6,2521.4,0.58408038]
[1725057686243,1.53658,2521.7,2521.5,0.58408038]
[1725057686439,4.34139732,2521.5,2521.4,0.39662]
[1725057686649,4.34139732,2521.5,2521.4,0.98069502]
[1725057686844,0.39658,2521.7,2521.4,0.98069502]
[1725057687049,0.39658,2521.7,2521.5,0.58407502]
[1725057687250,4.17345219,2521.6,2521.4,0.39662]
[1725057687449,4.17345219,2521.6,2521.5,0.5840785]
[1725057688252,4.17345219,2521.6,2521.4,0.39662]
[1725057688454,4.17345219,2521.6,2521.5,0.58408074]
[1725057691557,4.17345219,2521.6,2521.5,0.58405655]
[1725057692261,4.17345219,2521.6,2521.5,0.98065655]
[1725057693252,0.75807,2521.8,2521.5,0.98065655]
[1725057693459,0.75807,2521.8,2521.6,0.58405655]
[1725057693649,0.75807,2521.8,2521.7,0.58405655]
[1725057694153,4.90766349,2521.8,2521.7,0.58405655]
[1725057694860,4.90766349,2521.8,2521.5,0.3966]
[1725057695151,4.90766349,2521.8,2521.6,0.58402596]
[1725057695355,4.90766349,2521.8,2521.5,0.3966]
[1725057695557,4.51109349,2521.8,2521.6,0.98062349]
[1725057695853,4.51109349,2521.8,2521.6,0.39658]
[1725057696552,4.51109349,2521.8,2521.7,0.58401181]
[1725057696763,4.51109349,2521.8,2521.6,0.39658]
[1725057697152,4.90765349,2521.8,2521.6,0.39658]
[1725057697458,4.90765349,2521.8,2521.5,0.3966]
[1725057697459,0.39657,2521.7,2521.5,0.3966]
[1725057697753,4.215717,2521.6,2521.5,0.3966]
[1725057698053,9.717907,2521.6,2521.5,0.58410117]
[1725057698255,9.717907,2521.6,2521.2,3.6103853]
[1725057698256,0.39661,2521.5,2521.3,0.39663]
[1725057698449,9.321317,2521.6,2521.3,0.39663]
[1725057698450,0.76312,2521.4,2521.3,0.39663]
[1725057698756,5.363237,2521.4,2521.3,0.98081619]
[1725057699150,4.966617,2521.4,2521.3,0.98081619]
[1725057700958,4.215717,2521.4,2521.3,4.94721619]
[1725057701148,0.78658,2521.7,2521.5,0.3966]
[1725057701659,4.27777335,2521.6,2521.5,0.3966]
[1725057702959,4.67436335,2521.6,2521.4,0.39661]
[1725057703155,4.27777335,2521.6,2521.4,0.39661]
[1725057704563,4.27777335,2521.6,2521.5,0.3966]
[1725057705060,4.27777335,2521.6,2521.2,5.3453753]
[1725057705361,4.27777335,2521.6,2521.5,0.3966]
[1725057705556,4.27777335,2521.6,2521.5,4.18848046]
[1725057706157,4.27777335,2521.6,2521.5,4.57328046]
[1725057708056,4.27777335,2521.6,2521.5,4.57325989]
[1725057710960,0.7409,2521.9,2521.5,9.13377989]
[1725057711156,0.7409,2521.9,2521.7,0.39656]
[1725057711557,4.55187537,2521.8,2521.7,0.39656]
[1725057711758,4.55187537,2521.8,2521.7,0.98050294]
[1725057715472,3.60434,2522.0,2521.8,0.39655]
[1725057715670,3.60434,2522.0,2521.9,0.3698]
[1725057715671,4.33014,2522.0,2521.9,0.3698]
[1725057717373,0.39658,2521.7,2521.6,0.39659]
[1725057717573,0.39658,2521.7,2521.6,0.98062873]
[1725057717766,4.57758188,2521.7,2521.6,0.98062873]
[1725057717964,4.94198188,2521.7,2521.6,0.98062873]
[1725057720966,4.94198188,2521.7,2521.6,0.39659]
[1725057721171,4.94198188,2521.7,2521.6,0.98066857]
[1725057723671,4.94198188,2521.7,2521.6,0.39659]
[1725057723872,4.94198188,2521.7,2521.6,0.98067081]
[1725057724169,4.18100188,2521.7,2521.6,1.97214096]
[1725057724372,0.39654,2521.9,2521.8,0.39654]
[1725057724568,0.39654,2521.9,2521.8,0.98061096]
[1725057724877,4.59847585,2521.9,2521.8,0.98049367]
[1725057727277,4.59847585,2521.9,2521.8,0.98053757]
[1725057727778,4.20193585,2521.9,2521.8,0.98053757]
[1725057728274,4.20193585,2521.9,2521.8,1.36283757]
[1725057729879,4.20193585,2521.9,2521.8,5.56203757]
[1725057730073,4.20193585,2521.9,2521.8,6.31994934]
[1725057730480,4.20193585,2521.9,2521.8,9.33817985]
[1725057730678,4.20193585,2521.9,2521.8,9.33802443]
[1725057730875,4.20193585,2521.9,2521.8,8.34662443]
[1725057731083,4.20193585,2521.9,2521.8,8.96755098]
[1725057731280,4.20193585,2521.9,2521.8,6.98432924]
[1725057732790,4.20193585,2521.9,2521.8,7.97572924]
[1725057733085,0.4024253,2522.3,2522.0,0.39652]
[1725057733086,0.3965,2522.2,2522.0,0.39652]
[1725057733275,1.5365,2522.2,2522.1,0.58384215]
[1725057733475,5.95744456,2522.2,2522.1,0.58384215]
[1725057733683,0.39652,2522.1,2521.9,0.39653]
[1725057733895,0.3906,2522.0,2521.9,0.39653]
[1725057734077,0.3906,2522.0,2521.9,1.37401941]
[1725057740685,0.3906,2522.0,2521.9,0.98034937]
[1725057741591,0.3906,2522.0,2521.9,0.39653]
[1725057742286,0.3906,2522.0,2521.9,0.79018616]
[1725057742481,0.3906,2522.0,2521.9,1.37398859]
[1725057742684,0.3906,2522.0,2521.9,0.39653]
[1725057742892,0.3906,2522.1,2522.0,0.39653]
[1725057743091,0.3906,2522.1,2522.0,0.98032924]
[1725057744088,0.78711,2522.1,2522.0,0.98032924]
[1725057744790,0.78711,2522.1,2522.0,0.58379924]
[1725057744991,1.77839,2522.1,2522.0,0.58379924]
[1725057745290,1.38812,2521.5,2521.4,3.2078]
[1725057745590,0.39664,2521.3,2521.2,0.0059453]
[1725057745792,0.39664,2521.3,2521.2,0.4025953]
[1725057745980,4.96928413,2521.3,2521.2,0.4025953]
[1725057746187,10.07568413,2521.3,2521.2,0.0059453]
[1725057746388,17.06728413,2521.3,2521.2,0.0059453]
[1725057749796,0.39671,2520.8,2520.7,0.39672]
[1725057750003,2.13174,2521.0,2520.7,0.39673]
[1725057750196,5.70091836,2520.8,2520.5,3.56]
[1725057750495,1.53673,2520.8,2520.5,3.56]
[1725057750684,1.53673,2520.8,2520.6,0.39675]
[1725057750685,4.16418836,2520.7,2520.6,0.39675]
[1725057752187,0.3752453,2520.9,2520.8,0.39671]
[1725057752585,4.78652369,2520.9,2520.8,0.39671]
[1725057753391,4.41722369,2520.9,2520.8,4.36391]
[1725057753589,0.0059453,2520.9,2520.8,4.36391]
[1725057753892,0.0059453,2520.9,2520.7,0.39672]
[1725057754197,4.59374731,2520.9,2520.7,0.39672]
[1725057754385,4.19704731,2520.9,2520.7,0.39672]
[1725057754594,4.19704731,2520.9,2520.6,0.39673]
[1725057754595,4.59375731,2520.9,2520.6,0.39673]
[1725057754792,0.3521,2520.8,2520.6,0.39673]
[1725057754990,0.74881,2520.8,2520.6,0.39673]
[1725057755499,4.48891217,2520.7,2520.6,0.39673]
[1725057757995,4.48891217,2520.7,2520.6,6.08835131]